[Event "Betsys MČR v online bleskovém šachu 2021"]
[Site "Chess.com"]
[Date "2021.04.17"]
[Round "2"]
[White "sachmaty8"]
[Black "czlolcz"]
[Result "0-1"]
[WhiteElo "1852"]
[BlackElo "2185"]
[TimeControl "180+1"]
[EndTime "9:18:51 PDT"]
[Termination "Uživatel czlolcz zvítězil na čas"]

1. e4 {[%clk 0:03:00.9]} 1... e5 {[%clk 0:02:55.9]} 2. Nf3 {[%clk 0:03:00.6]}
2... Nf6 {[%clk 0:02:55.5]} 3. d4 {[%clk 0:02:59.9]} 3... Nxe4 {[%clk
0:02:53.9]} 4. Bd3 {[%clk 0:02:57.3]} 4... d5 {[%clk 0:02:53.4]} 5. Nxe5 {[%clk
0:02:55.7]} 5... Nd7 {[%clk 0:02:52.9]} 6. O-O {[%clk 0:02:51.6]} 6... Nxe5
{[%clk 0:02:48.3]} 7. dxe5 {[%clk 0:02:50.7]} 7... Be6 {[%clk 0:02:48.9]} 8. Nd2
{[%clk 0:02:41.2]} 8... Nc5 {[%clk 0:02:47]} 9. Nf3 {[%clk 0:02:34.3]} 9... Nxd3
{[%clk 0:02:43.7]} 10. Qxd3 {[%clk 0:02:33.7]} 10... Be7 {[%clk 0:02:44.3]} 11.
Nd4 {[%clk 0:02:27.8]} 11... c5 {[%clk 0:02:36.4]} 12. Nxe6 {[%clk 0:02:00.8]}
12... fxe6 {[%clk 0:02:37.3]} 13. f4 {[%clk 0:02:00.7]} 13... g6 {[%clk
0:02:31.1]} 14. c3 {[%clk 0:01:54.3]} 14... O-O {[%clk 0:02:19.3]} 15. Qg3
{[%clk 0:01:45.1]} 15... Qe8 {[%clk 0:02:04.7]} 16. Be3 {[%clk 0:01:28.1]} 16...
b6 {[%clk 0:02:00]} 17. Rad1 {[%clk 0:01:27.2]} 17... Qf7 {[%clk 0:01:57.8]} 18.
Rf2 {[%clk 0:01:21.1]} 18... Qf5 {[%clk 0:01:54]} 19. h3 {[%clk 0:01:12]} 19...
Qh5 {[%clk 0:01:50.1]} 20. Rff1 {[%clk 0:00:49.8]} 20... Bh4 {[%clk 0:01:45.8]}
21. Qf3 {[%clk 0:00:49.7]} 21... Qxf3 {[%clk 0:01:43.2]} 22. Rxf3 {[%clk
0:00:50.2]} 22... Rf7 {[%clk 0:01:40.6]} 23. Bf2 {[%clk 0:00:49.5]} 23... Be7
{[%clk 0:01:34.2]} 24. Be3 {[%clk 0:00:43.6]} 24... Raf8 {[%clk 0:01:31.6]} 25.
Kf2 {[%clk 0:00:29]} 25... Kg7 {[%clk 0:01:16.4]} 26. Ke2 {[%clk 0:00:29.3]}
26... h5 {[%clk 0:01:08.4]} 27. g4 {[%clk 0:00:27.5]} 27... hxg4 {[%clk
0:01:06.6]} 28. hxg4 {[%clk 0:00:28.4]} 28... Rh8 {[%clk 0:00:49.7]} 29. Rdf1
{[%clk 0:00:27]} 29... Rh4 {[%clk 0:00:43.7]} 30. Rg1 {[%clk 0:00:25.4]} 30...
Rf8 {[%clk 0:00:28.3]} 31. f5 {[%clk 0:00:25.3]} 31... Rh2+ {[%clk 0:00:22.5]}
32. Bf2 {[%clk 0:00:23.3]} 32... Bh4 {[%clk 0:00:16.7]} 33. f6+ {[%clk
0:00:15.8]} 33... Kf7 {[%clk 0:00:16.6]} 34. g5 {[%clk 0:00:15.5]} 34... Rh8
{[%clk 0:00:13.6]} 35. Ke3 {[%clk 0:00:15.2]} 35... Bxf2+ {[%clk 0:00:12.1]} 36.
Rxf2 {[%clk 0:00:15]} 36... R8h3+ {[%clk 0:00:12.5]} 37. Rf3 {[%clk 0:00:14.7]}
37... d4+ {[%clk 0:00:09.2]} 38. Ke4 {[%clk 0:00:12]} 38... Re2+ {[%clk
0:00:08.4]} 39. Kd3 {[%clk 0:00:10.9]} 39... Rxf3+ {[%clk 0:00:06]} 40. Kxe2
{[%clk 0:00:10.8]} 40... Re3+ {[%clk 0:00:06.9]} 41. Kd2 {[%clk 0:00:10.7]}
41... Rxe5 {[%clk 0:00:07.8]} 42. Rg4 {[%clk 0:00:09.4]} 42... dxc3+ {[%clk
0:00:07]} 43. Kxc3 {[%clk 0:00:10.3]} 43... Rf5 {[%clk 0:00:07.6]} 44. Kc4
{[%clk 0:00:09.7]} 44... a6 {[%clk 0:00:07.3]} 45. b3 {[%clk 0:00:09.3]} 45...
e5 {[%clk 0:00:07.8]} 46. Kd5 {[%clk 0:00:08.7]} 46... Rf4 {[%clk 0:00:08]} 47.
Rg3 {[%clk 0:00:08]} 47... e4 {[%clk 0:00:07.4]} 48. Rh3 {[%clk 0:00:07.6]}
48... Rf5+ {[%clk 0:00:07.8]} 49. Kd6 {[%clk 0:00:06.6]} 49... Rxg5 {[%clk
0:00:08.7]} 50. Re3 {[%clk 0:00:05.4]} 50... Kxf6 {[%clk 0:00:08.4]} 51. Rxe4
{[%clk 0:00:05.9]} 51... Rf5 {[%clk 0:00:08.8]} 52. Re6+ {[%clk 0:00:06]} 52...
Kg5 {[%clk 0:00:08.7]} 53. Kc7 {[%clk 0:00:05.4]} 53... b5 {[%clk 0:00:07.3]}
54. Rxa6 {[%clk 0:00:04.8]} 54... c4 {[%clk 0:00:07.4]} 55. bxc4 {[%clk
0:00:04.2]} 55... bxc4 {[%clk 0:00:08]} 56. Rc6 {[%clk 0:00:04.9]} 56... Rf4
{[%clk 0:00:08.2]} 57. a4 {[%clk 0:00:04.5]} 57... c3 {[%clk 0:00:08]} 58. a5
{[%clk 0:00:03.6]} 58... Ra4 {[%clk 0:00:08.1]} 59. Rxc3 {[%clk 0:00:02.6]}
59... Rxa5 {[%clk 0:00:08.2]} 60. Kd6 {[%clk 0:00:02.8]} 60... Kf4 {[%clk
0:00:07.4]} 61. Rc4+ {[%clk 0:00:02.7]} 61... Kf5 {[%clk 0:00:07.1]} 0-1

[Event "Betsys MČR v online bleskovém šachu 2021"]
[Site "Chess.com"]
[Date "2021.04.17"]
[Round "2"]
[White "MametevArtem097"]
[Black "Clockwork7orange"]
[Result "0-1"]
[WhiteElo "1980"]
[BlackElo "2314"]
[TimeControl "180+1"]
[EndTime "9:18:59 PDT"]
[Termination "Uživatel Clockwork7orange zvítězil po vzdání soupeře"]

1. d4 {[%clk 0:03:00.9]} 1... c5 {[%clk 0:02:47]} 2. e3 {[%clk 0:02:53.3]} 2...
cxd4 {[%clk 0:02:46.6]} 3. exd4 {[%clk 0:02:53.2]} 3... d5 {[%clk 0:02:46.4]} 4.
Nf3 {[%clk 0:02:52.8]} 4... Nf6 {[%clk 0:02:44.4]} 5. Bd3 {[%clk 0:02:51.3]}
5... Nc6 {[%clk 0:02:43.7]} 6. c3 {[%clk 0:02:50.9]} 6... Bg4 {[%clk 0:02:43]}
7. h3 {[%clk 0:02:45.7]} 7... Bh5 {[%clk 0:02:41.3]} 8. Bf4 {[%clk 0:02:37]}
8... e6 {[%clk 0:02:40.7]} 9. Nbd2 {[%clk 0:02:36.5]} 9... Bd6 {[%clk
0:02:37.5]} 10. Bxd6 {[%clk 0:02:33.5]} 10... Qxd6 {[%clk 0:02:37.1]} 11. O-O
{[%clk 0:02:33.2]} 11... O-O {[%clk 0:02:36.6]} 12. Be2 {[%clk 0:02:18.9]} 12...
Ne4 {[%clk 0:02:32.5]} 13. Nxe4 {[%clk 0:02:08.7]} 13... dxe4 {[%clk 0:02:32.2]}
14. Nd2 {[%clk 0:02:07.5]} 14... Bxe2 {[%clk 0:02:30.7]} 15. Qxe2 {[%clk
0:02:08.3]} 15... f5 {[%clk 0:02:30.4]} 16. Nc4 {[%clk 0:02:06.6]} 16... Qc7
{[%clk 0:02:24.1]} 17. Rad1 {[%clk 0:02:02.5]} 17... Rad8 {[%clk 0:02:18.7]} 18.
b4 {[%clk 0:01:44.7]} 18... b5 {[%clk 0:02:12.8]} 19. Nb2 {[%clk 0:01:36.1]}
19... a6 {[%clk 0:02:11.6]} 20. a4 {[%clk 0:01:35.3]} 20... Qb7 {[%clk
0:02:09.9]} 21. axb5 {[%clk 0:01:34.7]} 21... axb5 {[%clk 0:02:09.9]} 22. Ra1
{[%clk 0:01:31.6]} 22... Ra8 {[%clk 0:02:07.5]} 23. f3 {[%clk 0:01:21.5]} 23...
Rxa1 {[%clk 0:02:01.2]} 24. Rxa1 {[%clk 0:01:20.5]} 24... Ne7 {[%clk 0:01:57.9]}
25. fxe4 {[%clk 0:01:15.5]} 25... fxe4 {[%clk 0:01:56.5]} 26. Re1 {[%clk
0:01:16]} 26... Rf4 {[%clk 0:01:53.3]} 27. g3 {[%clk 0:01:00.5]} 27... Rf3
{[%clk 0:01:51.1]} 28. Qxe4 {[%clk 0:00:59.4]} 28... Qxe4 {[%clk 0:01:45.3]} 29.
Rxe4 {[%clk 0:00:58.6]} 29... Rxg3+ {[%clk 0:01:28.4]} 30. Kf2 {[%clk
0:00:51.7]} 30... Rxc3 {[%clk 0:01:27.9]} 31. Rxe6 {[%clk 0:00:49.6]} 31... Nd5
{[%clk 0:01:24.5]} 32. Nd1 {[%clk 0:00:45.7]} 32... Rxh3 {[%clk 0:01:18.4]} 33.
Re5 {[%clk 0:00:40.6]} 33... Nxb4 {[%clk 0:01:09.4]} 34. Rxb5 {[%clk 0:00:39.2]}
34... Nd3+ {[%clk 0:01:09.2]} 35. Ke2 {[%clk 0:00:37.5]} 35... Nf4+ {[%clk
0:01:09]} 36. Kf2 {[%clk 0:00:37.2]} 36... h6 {[%clk 0:01:07.9]} 37. Ne3 {[%clk
0:00:35.4]} 37... Nd3+ {[%clk 0:00:59.8]} 38. Ke2 {[%clk 0:00:33.5]} 38... Nf4+
{[%clk 0:00:59.7]} 39. Kf2 {[%clk 0:00:33.7]} 39... g5 {[%clk 0:00:58.1]} 40. d5
{[%clk 0:00:32.5]} 40... Kf7 {[%clk 0:00:56.7]} 41. Rb7+ {[%clk 0:00:27.4]}
41... Ke8 {[%clk 0:00:56]} 42. d6 {[%clk 0:00:26.2]} 42... Rh2+ {[%clk
0:00:52.2]} 43. Kf3 {[%clk 0:00:24.7]} 43... Rd2 {[%clk 0:00:50.5]} 44. Nf5
{[%clk 0:00:22.4]} 44... h5 {[%clk 0:00:46.8]} 45. Ng7+ {[%clk 0:00:20.6]} 45...
Kd8 {[%clk 0:00:45.5]} 46. Nf5 {[%clk 0:00:14]} 46... Kc8 {[%clk 0:00:41]} 47.
Rc7+ {[%clk 0:00:13.8]} 47... Kd8 {[%clk 0:00:40.5]} 48. Rb7 {[%clk 0:00:13.8]}
48... Ne6 {[%clk 0:00:38.9]} 49. Rb8+ {[%clk 0:00:12.7]} 49... Kd7 {[%clk
0:00:38.6]} 50. Rb7+ {[%clk 0:00:12.5]} 50... Kc8 {[%clk 0:00:38.8]} 51. Re7
{[%clk 0:00:12]} 51... g4+ {[%clk 0:00:36.4]} 52. Ke4 {[%clk 0:00:10.7]} 52...
Re2+ {[%clk 0:00:33.9]} 53. Kd3 {[%clk 0:00:10.8]} 53... Re1 {[%clk 0:00:31.2]}
54. Re8+ {[%clk 0:00:06.4]} 54... Kd7 {[%clk 0:00:29.9]} 55. Re7+ {[%clk
0:00:06.5]} 55... Kd8 {[%clk 0:00:30.4]} 56. Ne3 {[%clk 0:00:05.1]} 56... g3
{[%clk 0:00:26.5]} 57. Rxe6 {[%clk 0:00:04.7]} 57... h4 {[%clk 0:00:25.5]} 58.
Rh6 {[%clk 0:00:04.6]} 58... Kd7 {[%clk 0:00:21.8]} 59. Rxh4 {[%clk 0:00:04.1]}
59... Kxd6 {[%clk 0:00:22.1]} 60. Rd4+ {[%clk 0:00:04.5]} 60... Kc7 {[%clk
0:00:22]} 61. Rc4+ {[%clk 0:00:04.2]} 61... Kd7 {[%clk 0:00:21.6]} 62. Rd4+
{[%clk 0:00:04.6]} 62... Kc6 {[%clk 0:00:21.9]} 63. Rc4+ {[%clk 0:00:04.6]}
63... Kb5 {[%clk 0:00:22.3]} 64. Rd4 {[%clk 0:00:03.5]} 64... Ka5 {[%clk
0:00:22.7]} 65. Ke4 {[%clk 0:00:03.8]} 65... g2 {[%clk 0:00:21.6]} 66. Kf3
{[%clk 0:00:03.7]} 66... g1=Q {[%clk 0:00:20.7]} 67. Rd5+ {[%clk 0:00:02.6]}
67... Ka6 {[%clk 0:00:19.7]} 68. Rd6+ {[%clk 0:00:02.8]} 68... Kb7 {[%clk
0:00:19.7]} 69. Rd7+ {[%clk 0:00:02.6]} 69... Kc8 {[%clk 0:00:19.7]} 70. Nd5
{[%clk 0:00:01.6]} 0-1

[Event "Betsys MČR v online bleskovém šachu 2021"]
[Site "Chess.com"]
[Date "2021.04.17"]
[Round "2"]
[White "Millbo64"]
[Black "Cimrman"]
[Result "1/2-1/2"]
[WhiteElo "2003"]
[BlackElo "2351"]
[TimeControl "180+1"]
[EndTime "9:19:09 PDT"]
[Termination "Remíza opakováním pozice"]

1. d4 {[%clk 0:03:00.9]} 1... Nf6 {[%clk 0:02:55.1]} 2. Bf4 {[%clk 0:02:57.2]}
2... d5 {[%clk 0:02:53.9]} 3. e3 {[%clk 0:02:56.6]} 3... c6 {[%clk 0:02:53.6]}
4. c3 {[%clk 0:02:56.8]} 4... Qb6 {[%clk 0:02:40.7]} 5. Qb3 {[%clk 0:02:56.3]}
5... e6 {[%clk 0:02:33.3]} 6. Nd2 {[%clk 0:02:55.9]} 6... Be7 {[%clk 0:02:32.6]}
7. Ngf3 {[%clk 0:02:48.4]} 7... O-O {[%clk 0:02:31.5]} 8. Bd3 {[%clk 0:02:44.4]}
8... Nbd7 {[%clk 0:02:29.1]} 9. O-O {[%clk 0:02:39.3]} 9... c5 {[%clk
0:02:18.3]} 10. Qxb6 {[%clk 0:02:33.9]} 10... axb6 {[%clk 0:02:18.6]} 11. Ne5
{[%clk 0:02:28]} 11... c4 {[%clk 0:02:14.3]} 12. Bc2 {[%clk 0:02:22.9]} 12... b5
{[%clk 0:02:14.1]} 13. Nxd7 {[%clk 0:02:20.2]} 13... Bxd7 {[%clk 0:02:10.2]} 14.
a3 {[%clk 0:02:20.4]} 14... Bc6 {[%clk 0:02:08.3]} 15. f3 {[%clk 0:02:18.9]}
15... Nd7 {[%clk 0:02:05.3]} 16. Kf2 {[%clk 0:02:08.8]} 16... f6 {[%clk
0:02:03.3]} 17. g4 {[%clk 0:02:00.8]} 17... e5 {[%clk 0:01:50.4]} 18. Bg3 {[%clk
0:02:00.5]} 18... Bd6 {[%clk 0:01:46.2]} 19. Kg2 {[%clk 0:01:51.3]} 19... g6
{[%clk 0:01:41.5]} 20. Rae1 {[%clk 0:01:45.6]} 20... Rae8 {[%clk 0:01:37.5]} 21.
f4 {[%clk 0:01:17.2]} 21... exd4 {[%clk 0:01:15]} 22. exd4 {[%clk 0:01:17.2]}
22... Kf7 {[%clk 0:01:14.3]} 23. Nf3 {[%clk 0:01:10.3]} 23... Nb6 {[%clk
0:01:06.4]} 24. Rxe8 {[%clk 0:01:08.7]} 24... Rxe8 {[%clk 0:01:05.8]} 25. Re1
{[%clk 0:01:08.9]} 25... Rxe1 {[%clk 0:00:59.2]} 26. Nxe1 {[%clk 0:01:09.1]}
26... Bd7 {[%clk 0:00:59]} 27. h3 {[%clk 0:01:08.3]} 27... h6 {[%clk 0:00:39.9]}
28. Bxg6+ {[%clk 0:01:01.8]} 28... Kxg6 {[%clk 0:00:32.9]} 29. f5+ {[%clk
0:01:02.2]} 29... Kf7 {[%clk 0:00:28.8]} 30. Bxd6 {[%clk 0:01:02.4]} 30... Na4
{[%clk 0:00:29]} 31. Nc2 {[%clk 0:00:50.1]} 31... Nxb2 {[%clk 0:00:26.5]} 32.
Ne3 {[%clk 0:00:47.3]} 32... Bc6 {[%clk 0:00:25.3]} 33. Bb4 {[%clk 0:00:45.9]}
33... Nd3 {[%clk 0:00:21.6]} 34. Kf3 {[%clk 0:00:41.7]} 34... Ne1+ {[%clk
0:00:18.8]} 35. Ke2 {[%clk 0:00:39.7]} 35... Nd3 {[%clk 0:00:19.7]} 36. Kf3
{[%clk 0:00:29.6]} 36... Nc1 {[%clk 0:00:18.7]} 37. Ng2 {[%clk 0:00:26.5]} 37...
Nd3 {[%clk 0:00:16.3]} 38. Nf4 {[%clk 0:00:26.1]} 38... Kg7 {[%clk 0:00:14.2]}
39. Nxd3 {[%clk 0:00:23.9]} 39... cxd3 {[%clk 0:00:15.1]} 40. Ke3 {[%clk
0:00:24.2]} 40... Kf7 {[%clk 0:00:15]} 41. Kxd3 {[%clk 0:00:24.5]} 41... Bd7
{[%clk 0:00:15.2]} 42. Ke3 {[%clk 0:00:24.5]} 42... h5 {[%clk 0:00:15.6]} 43.
Kf4 {[%clk 0:00:22.7]} 43... hxg4 {[%clk 0:00:15.1]} 44. hxg4 {[%clk 0:00:22.8]}
44... Bc6 {[%clk 0:00:15.5]} 45. g5 {[%clk 0:00:22.4]} 45... fxg5+ {[%clk
0:00:15.9]} 46. Kxg5 {[%clk 0:00:22.3]} 46... Bd7 {[%clk 0:00:16.2]} 47. f6
{[%clk 0:00:20.4]} 47... Ke6 {[%clk 0:00:15.3]} 48. Kg6 {[%clk 0:00:18.9]} 48...
Be8+ {[%clk 0:00:15.6]} 49. Kg7 {[%clk 0:00:19.3]} 49... Bh5 {[%clk 0:00:15.6]}
50. Be7 {[%clk 0:00:18.3]} 50... Be8 {[%clk 0:00:14.7]} 51. Kf8 {[%clk
0:00:18.1]} 51... Bh5 {[%clk 0:00:15.2]} 52. Bd8 {[%clk 0:00:17.3]} 52... Bg6
{[%clk 0:00:14.7]} 53. Be7 {[%clk 0:00:17.4]} 53... Bh5 {[%clk 0:00:14.9]} 54.
Kg7 {[%clk 0:00:17.6]} 54... Be8 {[%clk 0:00:14.7]} 55. Kh6 {[%clk 0:00:17.5]}
55... Bf7 {[%clk 0:00:14.6]} 56. Kg5 {[%clk 0:00:17.5]} 56... Be8 {[%clk
0:00:14.8]} 57. Kf4 {[%clk 0:00:17.6]} 57... Bf7 {[%clk 0:00:14.9]} 58. Ke3
{[%clk 0:00:17.8]} 58... Be8 {[%clk 0:00:13.8]} 59. Kd2 {[%clk 0:00:17.9]} 59...
Kf5 {[%clk 0:00:13.8]} 60. Kc2 {[%clk 0:00:17.5]} 60... Ke4 {[%clk 0:00:13]} 61.
Kb3 {[%clk 0:00:17.8]} 61... Kf5 {[%clk 0:00:12]} 62. Kb4 {[%clk 0:00:17.9]}
62... Ke6 {[%clk 0:00:12.4]} 63. Kc5 {[%clk 0:00:18]} 63... Bd7 {[%clk
0:00:08.9]} 64. Kb6 {[%clk 0:00:17.5]} 64... Bc6 {[%clk 0:00:09.2]} 65. Kc7
{[%clk 0:00:17.5]} 65... Kf7 {[%clk 0:00:09.4]} 66. Bd8 {[%clk 0:00:16.2]} 66...
Ke6 {[%clk 0:00:08]} 67. Kb6 {[%clk 0:00:16.3]} 67... Kf7 {[%clk 0:00:08.3]} 68.
Kc5 {[%clk 0:00:13.6]} 68... Ke6 {[%clk 0:00:08.5]} 69. Be7 {[%clk 0:00:13.8]}
69... Be8 {[%clk 0:00:07.6]} 70. Bd8 {[%clk 0:00:12.1]} 70... Bc6 {[%clk
0:00:07.4]} 71. Kb4 {[%clk 0:00:10.6]} 71... Kf7 {[%clk 0:00:07.4]} 72. Kc5
{[%clk 0:00:10.7]} 72... Ke6 {[%clk 0:00:07.7]} 1/2-1/2

[Event "Betsys MČR v online bleskovém šachu 2021"]
[Site "Chess.com"]
[Date "2021.04.17"]
[Round "2"]
[White "Emicka1330"]
[Black "Toman_26"]
[Result "1-0"]
[WhiteElo "1651"]
[BlackElo "1054"]
[TimeControl "180+1"]
[EndTime "9:19:11 PDT"]
[Termination "Uživatel Emicka1330 zvítězil po vzdání soupeře"]

1. e4 {[%clk 0:03:00.9]} 1... c5 {[%clk 0:02:59.3]} 2. Nc3 {[%clk 0:03:00.6]}
2... d6 {[%clk 0:02:57.2]} 3. g3 {[%clk 0:03:00.5]} 3... Nc6 {[%clk 0:02:55.8]}
4. Bg2 {[%clk 0:03:00.8]} 4... Nf6 {[%clk 0:02:56]} 5. d3 {[%clk 0:03:00.8]}
5... g6 {[%clk 0:02:54.8]} 6. h3 {[%clk 0:03:00.4]} 6... Bg7 {[%clk 0:02:55.1]}
7. Be3 {[%clk 0:03:00.6]} 7... a6 {[%clk 0:02:52.7]} 8. Qd2 {[%clk 0:02:59.4]}
8... O-O {[%clk 0:02:50.1]} 9. Bh6 {[%clk 0:02:57.7]} 9... b5 {[%clk 0:02:49.3]}
10. h4 {[%clk 0:02:55.3]} 10... Bb7 {[%clk 0:02:47.8]} 11. h5 {[%clk 0:02:53.4]}
11... gxh5 {[%clk 0:02:38.3]} 12. Qg5 {[%clk 0:02:46]} 12... Ne8 {[%clk
0:02:29.8]} 13. Rxh5 {[%clk 0:02:39.1]} 13... f6 {[%clk 0:02:21.2]} 14. Qg4
{[%clk 0:02:32.6]} 14... Ne5 {[%clk 0:02:19.5]} 15. Qh3 {[%clk 0:02:06.1]} 15...
Bc8 {[%clk 0:02:13.4]} 16. Qh4 {[%clk 0:01:59.9]} 16... Ng6 {[%clk 0:02:09.9]}
17. Qh2 {[%clk 0:01:52.8]} 17... Bg4 {[%clk 0:02:03.4]} 18. Bxg7 {[%clk
0:01:45.8]} 18... Kxg7 {[%clk 0:01:55.6]} 19. Rxh7+ {[%clk 0:01:43.9]} 19... Kg8
{[%clk 0:01:55.8]} 20. f3 {[%clk 0:01:13.7]} 20... Bd7 {[%clk 0:01:44.9]} 21.
O-O-O {[%clk 0:01:06.8]} 21... Rf7 {[%clk 0:01:38.6]} 22. Rxf7 {[%clk
0:01:00.8]} 22... Kxf7 {[%clk 0:01:38.9]} 23. Qh7+ {[%clk 0:00:58.4]} 23... Ng7
{[%clk 0:01:39.2]} 24. Nd5 {[%clk 0:00:54.1]} 24... Qh8 {[%clk 0:01:34.9]} 25.
Qxh8 {[%clk 0:00:52.6]} 25... Rxh8 {[%clk 0:01:32.5]} 26. Ne2 {[%clk 0:00:52.4]}
26... Rh2 {[%clk 0:01:31.5]} 27. Rg1 {[%clk 0:00:50.1]} 27... Be6 {[%clk
0:01:20.7]} 28. Nec3 {[%clk 0:00:46]} 28... b4 {[%clk 0:01:12.4]} 29. Ne2 {[%clk
0:00:42.4]} 29... Ne5 {[%clk 0:01:05.7]} 30. Nc7 {[%clk 0:00:37]} 30... Bh3
{[%clk 0:00:56.4]} 31. Bxh3 {[%clk 0:00:33]} 31... Rxh3 {[%clk 0:00:56.4]} 32.
Nxa6 {[%clk 0:00:32.2]} 32... Nxf3 {[%clk 0:00:51.5]} 33. Rf1 {[%clk 0:00:30.6]}
33... Ne5 {[%clk 0:00:45.9]} 34. Nc7 {[%clk 0:00:28.5]} 34... Nh5 {[%clk
0:00:41.1]} 35. Rg1 {[%clk 0:00:25.6]} 35... Nf3 {[%clk 0:00:31.8]} 36. Rf1
{[%clk 0:00:15.8]} 36... Nd4 {[%clk 0:00:28.9]} 37. Nxd4 {[%clk 0:00:14.7]}
37... cxd4 {[%clk 0:00:29.3]} 38. g4 {[%clk 0:00:14.1]} 38... Ng3 {[%clk
0:00:27.2]} 39. Re1 {[%clk 0:00:10.6]} 39... Rh4 {[%clk 0:00:17.9]} 40. Nd5
{[%clk 0:00:09.4]} 40... Rxg4 {[%clk 0:00:16.7]} 41. Nxb4 {[%clk 0:00:09]} 41...
Rf4 {[%clk 0:00:14.6]} 42. Nc6 {[%clk 0:00:08.7]} 42... Nh5 {[%clk 0:00:09.1]}
43. Nxd4 {[%clk 0:00:08]} 43... Ng7 {[%clk 0:00:08]} 44. a4 {[%clk 0:00:07.3]}
44... Ne6 {[%clk 0:00:07.6]} 45. Nxe6 {[%clk 0:00:07]} 45... Kxe6 {[%clk
0:00:07.9]} 46. a5 {[%clk 0:00:07.1]} 46... Kd7 {[%clk 0:00:08.4]} 47. a6 {[%clk
0:00:07.1]} 47... Kc7 {[%clk 0:00:07.6]} 48. Kd2 {[%clk 0:00:07.2]} 48... Rf2+
{[%clk 0:00:06.1]} 49. Kc3 {[%clk 0:00:06.6]} 49... Rh2 {[%clk 0:00:05.9]} 50.
Ra1 {[%clk 0:00:06.5]} 50... Rh8 {[%clk 0:00:05.7]} 51. a7 {[%clk 0:00:06]}
51... Ra8 {[%clk 0:00:05.4]} 52. Kd4 {[%clk 0:00:06]} 52... Kb7 {[%clk
0:00:05.6]} 53. Kd5 {[%clk 0:00:06.1]} 53... Rxa7 {[%clk 0:00:04.2]} 54. Rxa7+
{[%clk 0:00:06]} 54... Kxa7 {[%clk 0:00:04.5]} 55. Ke6 {[%clk 0:00:06.1]} 55...
Kb7 {[%clk 0:00:05]} 56. Kxe7 {[%clk 0:00:06.1]} 56... Kc6 {[%clk 0:00:05.5]}
57. Kxf6 {[%clk 0:00:06]} 57... Kc5 {[%clk 0:00:04.6]} 58. c3 {[%clk 0:00:05.6]}
58... Kb5 {[%clk 0:00:03.6]} 59. Ke6 {[%clk 0:00:05.7]} 59... Kc5 {[%clk
0:00:03.7]} 60. b4+ {[%clk 0:00:05.7]} 60... Kc6 {[%clk 0:00:04]} 61. b5+ {[%clk
0:00:05.5]} 61... Kc5 {[%clk 0:00:04]} 62. e5 {[%clk 0:00:04.5]} 62... Kb6
{[%clk 0:00:03.1]} 63. exd6 {[%clk 0:00:04.2]} 63... Kxb5 {[%clk 0:00:03.6]} 64.
d7 {[%clk 0:00:04.3]} 64... Ka4 {[%clk 0:00:04]} 65. d8=Q {[%clk 0:00:03.6]}
65... Kb3 {[%clk 0:00:04.9]} 66. Qc7 {[%clk 0:00:03.1]} 1-0